bitfinex/quotes_ETHUSD_20241004
["timestamp","ask_amount","ask_price","bid_price","bid_amount"]
[1728014376821,5.0122,2372.3,2372.0,0.76]
[1728014377009,0.04808252,2372.2,2372.0,0.76]
[1728014377210,9.22762,2372.3,2372.0,0.76]
[1728014377410,0.04808252,2372.2,2372.0,0.76]
[1728014377611,4.2155,2372.2,2371.8,4.9762]
[1728014377806,0.04798642,2372.1,2371.8,4.9762]
[1728014378009,0.04798642,2372.1,2371.8,6.07202617]
[1728014378235,9.22762,2372.3,2371.8,6.07202617]
[1728014378553,0.04791723,2372.0,2371.8,9.27663307]
[1728014378753,9.22767,2372.3,2371.8,4.97612]
[1728014378956,0.04784803,2371.9,2371.8,4.97612]
[1728014379156,4.2155,2372.2,2371.8,4.97612]
[1728014379627,0.04798642,2372.1,2371.8,4.97612]
[1728014379824,0.04798642,2372.1,2371.9,0.08431308]
[1728014380031,5.0122,2372.3,2371.9,0.08431308]
[1728014380271,0.04791723,2372.0,2371.9,0.08431308]
[1728014380472,5.0122,2372.3,2371.9,4.30033308]
[1728014380766,0.04791723,2372.0,2371.9,4.30033308]
[1728014380975,5.0122,2372.3,2371.9,5.29969348]
[1728014381125,0.04791723,2372.0,2371.9,4.30033308]
[1728014381675,5.0122,2372.3,2371.8,0.76]
[1728014381846,0.04791723,2372.0,2371.8,0.76]
[1728014382050,9.2276,2372.3,2371.8,4.9761]
[1728014382373,0.04784803,2371.9,2371.8,4.9761]
[1728014382672,0.04784803,2371.9,2371.8,5.96330772]
[1728014382834,4.21551,2372.2,2371.8,5.96330772]
[1728014383342,0.04801422,2372.1,2371.8,5.96330772]
[1728014384013,5.0122,2372.3,2371.8,5.96330772]
[1728014384149,0.04794503,2372.0,2371.8,5.96330772]
[1728014384473,0.04787583,2371.9,2371.8,5.96330772]
[1728014384673,9.22763,2372.3,2371.8,5.96330772]
[1728014384836,0.04787583,2371.9,2371.8,4.9761]
[1728014385035,9.22763,2372.3,2371.8,4.9761]
[1728014385234,0.04808341,2372.2,2371.8,4.9761]
[1728014385544,9.22763,2372.3,2371.8,4.9761]
[1728014385742,0.04801422,2372.1,2371.9,4.3003124]
[1728014385925,0.04808341,2372.2,2371.9,5.22795364]
[1728014386126,0.04794503,2372.0,2371.9,5.22795364]
[1728014386359,4.2154,2372.3,2371.9,5.22795364]
[1728014386586,0.04794503,2372.0,2371.9,4.3003124]
[1728014386737,4.2154,2372.3,2371.9,4.8503124]
[1728014386929,0.04794503,2372.0,2371.9,4.8503124]
[1728014387132,4.2154,2372.3,2371.9,4.8503124]
[1728014387353,7.99181,2372.5,2371.9,4.8503124]
[1728014387588,0.04808341,2372.2,2372.1,5.52554]
[1728014387792,3.0,2372.4,2372.1,5.52554]
[1728014388250,0.04804492,2372.3,2372.1,5.52554]
[1728014389727,4.21496,2372.5,2372.1,5.52554]
[1728014389963,0.04797573,2372.2,2372.1,6.55577712]
[1728014390344,4.21496,2372.5,2372.1,6.55577712]
[1728014390549,0.04797573,2372.2,2372.1,6.55577712]
[1728014391030,4.21496,2372.5,2372.1,6.55577712]
[1728014391226,0.04811409,2372.4,2372.2,4.21542]
[1728014391427,0.04811409,2372.4,2372.2,4.29971931]
[1728014391664,3.0,2372.6,2372.2,5.44137208]
[1728014391867,0.04804492,2372.3,2372.2,4.29971931]
[1728014392103,3.0,2372.6,2372.2,4.29971931]
[1728014392300,0.04804492,2372.3,2372.2,4.29971931]
[1728014392509,4.9765,2372.7,2372.3,4.2153]
[1728014392672,4.2147,2372.7,2372.3,5.05689575]
[1728014393914,8.42945,2372.7,2372.3,5.05689575]
[1728014394275,4.2147,2372.7,2372.3,1.4905206]
[1728014395319,4.2147,2372.7,2372.3,5.7058306]
[1728014395702,8.42944,2372.7,2372.3,5.7058306]
[1728014396216,0.7618,2372.5,2371.9,0.8823528]
[1728014396403,4.2154,2372.3,2371.9,4.30031965]
[1728014397884,4.2154,2372.3,2371.9,4.30025965]
[1728014401683,4.2154,2372.3,2371.9,4.30024965]
[1728014401912,0.7618,2372.5,2372.0,0.7573]
[1728014402112,0.7618,2372.5,2372.1,4.29990254]
[1728014402621,4.21488,2372.6,2372.1,8.51547254]
[1728014402769,3.0,2372.5,2372.2,0.08429939]
[1728014402980,3.0,2372.5,2372.1,4.21557]
[1728014403216,3.0,2372.5,2372.1,9.0892966]
[1728014403416,3.0,2372.5,2372.1,4.8737266]
[1728014403417,7.21497,2372.5,2372.1,4.8737266]
[1728014404222,4.21539,2372.3,2371.9,4.21598]
[1728014404379,0.8304,2372.2,2371.9,4.21599]
[1728014404585,0.8304,2372.2,2372.0,4.21585]
[1728014404782,4.21529,2372.4,2372.0,4.21575]
[1728014404783,5.04569,2372.4,2372.0,4.21575]
[1728014406583,9.26095,2372.4,2372.0,4.21575]
[1728014407633,9.26095,2372.4,2371.9,4.30030952]
[1728014407794,4.21539,2372.3,2371.9,4.30030952]
[1728014407996,5.04566,2372.4,2371.9,0.08430952]
[1728014408214,9.2609,2372.4,2371.9,4.30024952]
[1728014408615,4.21534,2372.3,2371.9,4.30024952]
[1728014408784,5.04564,2372.4,2371.9,4.30024952]
[1728014409600,4.21535,2372.3,2371.9,4.30024952]
[1728014411031,4.21535,2372.3,2371.9,0.08430952]
[1728014411221,4.21535,2372.3,2371.9,4.30029952]
[1728014412631,4.21558,2372.2,2371.8,5.8827328]
[1728014413990,4.21558,2372.2,2371.8,5.00038]
[1728014414535,0.8304,2372.1,2371.8,0.55]
[1728014414833,5.04616,2372.1,2371.8,0.55]
[1728014415828,0.8304,2372.1,2371.8,0.55]
[1728014416392,0.04624628,2372.0,2371.8,0.55]
[1728014417833,0.04624628,2372.0,2371.8,4.76617]
[1728014417996,0.04624628,2372.0,2371.9,0.98648228]
[1728014419219,0.04624628,2372.0,2371.8,0.55]
[1728014420190,0.04624628,2372.0,2371.8,4.76608]
[1728014420432,0.04624628,2372.0,2371.8,4.85039275]
[1728014420637,0.8083,2372.3,2371.9,0.8026]
[1728014420845,3.8083,2372.5,2372.0,8.99681928]
[1728014421132,3.0,2372.6,2372.2,4.21549]
[1728014421436,7.21482,2372.6,2372.2,4.21541]
[1728014422242,3.0,2372.6,2372.3,4.21524]
[1728014422843,3.0,2372.6,2372.1,0.8026]
[1728014422993,3.0,2372.6,2372.2,4.84978827]
[1728014423190,3.0,2372.6,2372.2,9.06527827]
[1728014423435,3.0,2372.6,2372.2,4.76549]
[1728014423835,3.0,2372.6,2372.2,4.84978827]
[1728014424033,3.0,2372.6,2372.2,9.06520827]
[1728014424200,3.0,2372.6,2372.3,4.21531]
[1728014426308,0.04655049,2372.5,2372.3,4.21531]
[1728014426514,0.04655049,2372.5,2372.3,0.56522083]
[1728014427192,0.04655049,2372.5,2372.3,4.78041083]
[1728014427596,0.8083,2372.7,2372.4,4.21514]
[1728014428397,4.21445,2372.8,2372.4,4.21514]
[1728014428595,4.21445,2372.8,2372.4,5.97229508]
[1728014432959,4.21445,2372.8,2372.4,1.75715508]
[1728014433373,4.21445,2372.8,2372.4,5.97220508]
[1728014434361,4.21445,2372.8,2372.4,1.75715508]
[1728014434656,4.21445,2372.8,2372.4,0.8026]
[1728014435760,4.21462,2372.7,2372.4,0.8026]
[1728014436116,4.21462,2372.7,2372.3,4.21523]
[1728014436577,0.7999,2372.6,2372.3,4.21523]
[1728014440076,4.21445,2372.8,2372.3,4.21523]
[1728014440369,9.22887,2372.8,2372.3,4.21523]
[1728014440740,4.21462,2372.7,2372.3,4.21523]
[1728014441439,0.04492629,2372.6,2372.3,4.21523]
[1728014441944,0.04492629,2372.6,2372.3,4.21518]
[1728014442144,5.01435,2372.8,2372.3,4.77648782]
[1728014442351,0.04499545,2372.7,2372.3,4.21518]
[1728014442676,5.01435,2372.8,2372.4,4.21513]
[1728014442981,5.01435,2372.8,2372.3,4.21518]
[1728014443179,4.25929566,2372.7,2372.3,4.21518]
[1728014446280,4.25929566,2372.7,2372.3,8.43042]
[1728014446573,0.04468566,2372.7,2372.3,4.21518]
[1728014446775,5.01435,2372.8,2372.4,4.21512]
[1728014446980,0.04434896,2372.7,2372.3,4.21518]
[1728014447155,10.451727,2372.8,2372.3,4.21518]
[1728014447351,0.04430729,2372.7,2372.3,4.21518]
[1728014447556,5.01435,2372.8,2372.4,4.21512]
[1728014447755,0.04430729,2372.7,2372.4,4.21512]
[1728014447979,5.01435,2372.8,2372.4,4.21512]
[1728014448182,0.04430729,2372.7,2372.2,1.39789707]
[1728014448380,4.25892729,2372.7,2372.3,4.77662271]
[1728014449098,4.25892729,2372.7,2372.3,8.99185271]
[1728014449588,0.04430729,2372.7,2372.4,4.21514]
[1728014449794,0.04430729,2372.7,2372.2,5.52906]
[1728014449996,5.01435,2372.8,2372.2,5.52906]
[1728014449997,4.21478,2372.6,2372.2,5.52906]
[1728014450217,4.25901813,2372.6,2372.2,5.52906]
[1728014452751,0.04423813,2372.6,2372.2,5.52906]
[1728014453358,0.7606,2372.5,2372.2,5.52906]
[1728014453796,0.0440998,2372.4,2372.2,5.52906]
[1728014454000,0.0440998,2372.4,2372.3,4.21531]
[1728014457269,0.0440998,2372.4,2372.3,4.29960864]
[1728014457784,4.21445,2372.8,2372.4,4.21502]
[1728014458359,0.7606,2372.9,2372.5,4.21494]
[1728014458595,3.0,2372.8,2372.5,4.21494]
[1728014461571,3.0,2372.8,2372.5,4.21487]
[1728014461764,3.0,2372.8,2372.5,5.00837]
[1728014462195,3.0,2372.8,2372.5,9.22324]
[1728014462606,3.0,2372.8,2372.5,5.00837]
[1728014464610,3.0,2372.8,2372.5,9.22321]
[1728014464810,3.0,2372.8,2372.5,4.21484]
[1728014467166,0.7606,2372.9,2372.5,4.21484]
[1728014467326,0.7606,2372.9,2372.6,4.21469]
[1728014467536,4.97498,2372.9,2372.5,4.2149]
[1728014467716,4.21461,2372.7,2372.3,4.97887]
[1728014467917,0.7651,2372.6,2372.3,4.97887]
[1728014468625,0.7651,2372.6,2372.3,9.1941]
[1728014468823,0.7651,2372.6,2372.4,4.21502]
[1728014469143,3.7651,2372.8,2372.4,4.21502]
[1728014469851,3.7651,2372.8,2372.5,4.21495]
[1728014471375,0.04411989,2372.7,2372.5,4.21495]
[1728014471583,3.7651,2372.8,2372.6,4.21466]
[1728014471740,0.04411989,2372.7,2372.6,4.21466]
[1728014471937,3.0,2372.9,2372.6,4.21466]
[1728014472162,0.04421596,2372.8,2372.6,4.21466]
[1728014473750,0.04421596,2372.8,2372.6,4.97836]
[1728014479780,0.04421596,2372.8,2372.5,4.21488]
[1728014481939,0.04421596,2372.8,2372.5,4.21486]
[1728014483539,0.04421596,2372.8,2372.5,1.00760728]
[1728014483749,0.7651,2373.5,2372.7,1.3137]
[1728014484068,4.25658484,2373.4,2373.0,0.7637]
[1728014484248,0.7651,2373.2,2372.9,4.21419]
[1728014484448,0.7651,2373.2,2372.9,1.06247028]
[1728014484685,0.03985365,2373.1,2372.9,1.06247028]
[1728014485450,0.03985365,2373.1,2372.9,5.27669028]
[1728014486585,0.03985365,2373.1,2373.0,4.21407]
[1728014486791,4.97846,2373.4,2373.0,4.21407]
[1728014486956,0.03999189,2373.3,2373.0,4.21407]
[1728014488291,0.03999189,2373.3,2373.0,5.29453403]
[1728014491756,0.03999189,2373.3,2373.0,6.05812403]
[1728014496678,0.03999189,2373.3,2373.0,10.27212403]
[1728014496991,0.03999189,2373.3,2373.0,6.05812403]
[1728014497200,4.21321,2373.5,2373.0,6.05812403]
[1728014497490,0.03754532,2373.4,2373.0,6.05812403]
[1728014499284,4.21321,2373.5,2373.1,4.21381]
[1728014499692,4.25020055,2373.5,2373.1,4.21381]
[1728014500207,0.03699055,2373.5,2373.2,4.2136]
[1728014500510,0.03699055,2373.5,2373.3,0.7534]
[1728014504182,0.03699055,2373.5,2373.2,4.2136]
[1728014504715,4.25029055,2373.5,2373.1,0.83766948]
[1728014504919,0.03699055,2373.5,2373.2,0.50516095]
[1728014506005,4.25025055,2373.5,2373.2,0.50516095]
[1728014506616,4.96376,2373.5,2373.2,0.50516095]
[1728014507177,4.21337,2373.4,2373.2,0.50516095]
[1728014508413,4.21337,2373.4,2373.1,0.7534]
[1728014508608,4.21337,2373.4,2372.9,4.96764]
[1728014508609,8.42686,2373.4,2372.9,4.96764]
[1728014508992,4.21365,2373.3,2372.9,4.96764]
[1728014509506,4.21337,2373.4,2373.0,4.21406]
[1728014510712,8.42687,2373.4,2372.9,5.05189581]
[1728014511089,4.21354,2373.3,2372.9,5.05189581]
[1728014511296,4.21337,2373.4,2373.0,0.56018958]
[1728014511496,4.21337,2373.4,2373.0,4.77417958]
[1728014513147,0.7505,2373.5,2373.1,4.21388]
[1728014513446,0.7505,2373.5,2373.2,0.7804]
[1728014513645,4.96378,2373.5,2373.2,0.7804]
[1728014514154,4.21308,2373.6,2373.2,5.54954696]
[1728014515217,4.21275,2373.8,2373.2,5.54954696]
[1728014515452,4.21284,2373.7,2373.3,4.21349]
[1728014515821,4.21284,2373.7,2373.2,5.54954696]
[1728014516034,4.21284,2373.7,2373.2,9.76318696]
[1728014516244,4.21284,2373.7,2373.3,0.98474542]
[1728014516876,3.7567,2373.9,2373.4,0.08426109]
[1728014517166,7.21256,2373.9,2373.5,4.99358]
[1728014517337,4.21268,2373.8,2373.5,0.7804]
[1728014518421,4.21268,2373.8,2373.5,1.70112]
[1728014519040,4.96938,2373.8,2373.5,1.70112]
[1728014523479,4.21268,2373.8,2373.5,1.70112]
[1728014524041,11.4252,2373.9,2373.5,1.70112]
[1728014524780,7.21256,2373.9,2373.5,1.70112]
[1728014526140,7.21256,2373.9,2373.5,1.20112]
[1728014528441,3.0,2373.9,2373.5,5.41422]
[1728014529247,7.21249,2373.9,2373.5,5.41422]
[1728014529682,7.21249,2373.9,2373.5,1.20112]
[1728014529863,7.21249,2373.9,2373.5,0.2804]
[1728014530267,7.21249,2373.9,2373.5,4.49349]
[1728014530702,0.7567,2374.0,2373.5,4.49349]
[1728014530703,7.2123,2374.0,2373.5,4.49349]
[1728014531070,7.2123,2374.0,2373.6,4.21296]
[1728014531273,7.2123,2374.0,2373.5,4.49349]
[1728014531274,3.0,2374.0,2373.5,4.49349]
[1728014531582,4.21223,2374.1,2373.7,4.21282]
[1728014531955,8.42452,2374.1,2373.6,0.7742]
[1728014532156,8.42452,2374.1,2373.6,4.9872]
[1728014532392,8.42448,2374.1,2373.6,4.9872]
[1728014532808,8.42445,2374.1,2373.6,4.9872]
[1728014532985,4.21222,2374.1,2373.6,6.03640806]
[1728014533483,4.21221,2374.1,2373.6,10.24931806]
[1728014533656,4.21221,2374.1,2373.6,10.1650659]
[1728014534294,4.97866,2374.2,2373.8,4.21265]
[1728014534456,4.21177,2374.3,2373.9,4.98657]
[1728014534658,4.21177,2374.3,2373.9,0.7742]
[1728014535672,4.21177,2374.3,2373.9,4.98663]
[1728014536799,0.0460896,2374.4,2373.9,4.98663]
[1728014537015,4.2576896,2374.4,2374.0,4.21227]
[1728014537160,4.2576896,2374.4,2373.9,4.98663]
[1728014537161,3.0,2374.3,2373.9,4.98663]
[1728014537595,3.0,2374.3,2373.9,9.19901]
[1728014537761,3.0,2374.3,2374.0,4.21227]
[1728014538105,4.2576896,2374.4,2374.0,4.21227]
[1728014538325,0.0460896,2374.4,2374.1,4.2121]
[1728014538481,0.0460896,2374.4,2374.0,0.919885]
[1728014538826,0.0460896,2374.4,2374.0,9.344425]
[1728014540497,0.0460896,2374.4,2374.0,5.132105]
[1728014541433,0.00607359,2374.4,2374.1,4.2121]
[1728014541729,0.00607359,2374.4,2374.2,0.7742]
[1728014542582,0.00607359,2374.4,2374.2,4.98612]
[1728014544590,0.00607359,2374.4,2374.2,0.7742]
[1728014550303,0.00607359,2374.4,2374.1,4.21201]
[1728014550501,0.77277359,2374.4,2374.1,4.21201]
[1728014551043,0.77277359,2374.4,2374.1,5.2238515]
[1728014555151,0.77277359,2374.4,2374.1,1.0118415]
[1728014555307,0.77277359,2374.4,2374.0,0.7742]
[1728014555308,4.21194,2374.2,2374.0,0.7742]
[1728014555514,4.21194,2374.2,2373.7,0.8123]
[1728014555759,4.21179,2374.3,2373.8,4.21255]
[1728014560260,4.21179,2374.3,2373.8,4.21255]
[1728014563825,4.21195,2374.2,2373.7,5.02499]
[1728014564029,0.7997,2374.1,2373.7,5.02499]
[1728014564348,4.21234,2374.0,2373.7,0.8123]
[1728014564856,5.01191,2374.1,2373.5,9.23844]
[1728014565056,9.22419,2374.1,2373.6,4.63712539]
[1728014565360,9.22419,2374.1,2373.6,4.213]
[1728014565852,4.21234,2374.0,2373.6,4.213]
[1728014566642,4.21234,2374.0,2373.5,9.23844]
[1728014566974,4.21234,2374.0,2373.5,5.02535]
[1728014568435,4.21234,2374.0,2373.5,9.23845]
[1728014568630,4.21234,2374.0,2373.5,5.02535]
[1728014570341,4.21234,2374.0,2373.5,6.03745928]
[1728014572155,4.21247,2373.9,2373.5,6.03745928]
[1728014572375,4.21247,2373.9,2373.5,5.02535]
[1728014572921,4.21247,2373.9,2373.5,5.10960426]
[1728014574372,4.2123,2374.0,2373.5,9.32270426]
[1728014574669,4.2123,2374.0,2373.5,5.02535]
[1728014574969,4.2123,2374.0,2373.5,5.10960428]
[1728014575134,4.2123,2374.0,2373.5,6.26249491]
[1728014575529,4.21249,2373.9,2373.5,6.17824063]
[1728014576928,8.42471,2374.0,2373.5,6.26249493]
[1728014577348,8.42471,2374.0,2373.5,7.14484773]
[1728014577551,4.2123,2374.0,2373.5,11.35795773]
[1728014577862,8.42473,2374.0,2373.5,6.17824063]
[1728014578163,8.42473,2374.0,2373.5,7.06059343]
[1728014578771,8.42473,2374.0,2373.5,6.17824063]
[1728014579129,8.42473,2374.0,2373.5,7.06059343]
[1728014579538,0.7513,2373.9,2373.5,0.8823528]
[1728014579868,4.96433,2373.6,2373.2,0.8823528]
[1728014580167,4.21326,2373.5,2373.1,1.6346528]
[1728014580335,4.21326,2373.5,2373.1,2.06739976]
[1728014580928,4.21348,2373.4,2373.1,0.7523]
[1728014581140,4.21342,2373.4,2373.0,0.8823528]
[1728014581340,4.21342,2373.4,2372.9,5.8487728]
[1728014581760,4.21356,2373.3,2372.9,5.8487728]
[1728014582162,4.96502,2373.2,2372.9,0.7523]
[1728014582367,0.7513,2373.2,2372.9,0.7523]
[1728014582524,0.7513,2373.2,2372.9,4.96654]
[1728014583361,4.96472,2373.4,2372.9,4.96644]
[1728014583574,9.17822,2373.4,2372.9,4.96644]
[1728014583767,9.1782,2373.4,2372.9,4.96644]
[1728014584273,4.96472,2373.4,2372.9,4.96644]
[1728014584478,4.96472,2373.4,2372.9,5.98119603]
[1728014584976,4.96472,2373.4,2373.0,4.21405]
[1728014585185,4.21342,2373.4,2373.0,4.21405]
[1728014586239,5.01265,2373.6,2373.0,4.21398]
[1728014586479,4.21321,2373.5,2373.0,4.21398]
[1728014586775,5.01265,2373.6,2373.0,4.21398]
[1728014586776,5.01265,2373.6,2373.2,4.21371]
[1728014586978,4.21274,2373.8,2373.4,0.7508]
[1728014586979,3.0,2373.7,2373.4,0.7508]
[1728014587181,3.0,2373.7,2373.4,4.96407]
[1728014587402,5.01224,2373.8,2373.4,4.96407]
[1728014587403,3.0,2373.8,2373.4,4.96407]
[1728014587983,3.0,2373.8,2373.4,5.04832827]
[1728014588791,0.7995,2374.0,2373.5,4.21318]
[1728014589086,5.01189,2374.0,2373.5,4.21318]
[1728014589687,4.21253,2373.9,2373.5,4.21318]
[1728014590946,4.21249,2373.9,2373.5,4.21318]
[1728014591393,5.01189,2374.0,2373.5,9.40291511]
[1728014591678,4.21256,2373.9,2373.5,4.21309]
[1728014591882,4.21239,2374.0,2373.7,0.7508]
[1728014592254,8.42486,2374.0,2373.7,0.7508]
[1728014592576,4.21239,2374.0,2373.7,0.7508]
[1728014592744,8.42483,2374.0,2373.7,0.7508]
[1728014593081,8.42481,2374.0,2373.7,0.7508]
[1728014593478,4.21239,2374.0,2373.7,0.7508]
[1728014593681,4.21213,2374.1,2373.7,5.45999]
[1728014594389,8.01148,2374.2,2373.8,0.55]
[1728014595040,8.01148,2374.2,2373.8,4.76264]
[1728014595242,4.21213,2374.1,2373.8,0.55]
[1728014596251,8.01148,2374.2,2373.8,0.55]
[1728014597257,12.22357,2374.2,2373.8,0.55]
[1728014597455,12.22357,2374.2,2373.6,4.213]
[1728014597456,0.7995,2374.1,2373.6,4.213]
[1728014597786,3.7995,2374.1,2373.6,4.213]
[1728014597971,4.21244,2374.0,2373.6,4.213]
[1728014598986,4.21244,2374.0,2373.4,5.38728314]
[1728014598987,3.0,2374.2,2374.0,0.7508]
[1728014599192,7.21195,2374.2,2374.0,0.7508]
[1728014599362,3.0,2374.3,2374.0,0.7508]
[1728014599565,4.21195,2374.2,2374.0,0.7508]
[1728014599759,3.0,2374.1,2373.7,4.96362]
[1728014600076,7.21214,2374.1,2373.7,4.96362]
[1728014600398,5.01189,2374.0,2373.5,4.96395]
[1728014600689,5.01189,2374.0,2373.5,0.7508]
[1728014600690,4.21267,2373.8,2373.5,0.7508]
[1728014600858,4.21235,2374.0,2373.6,4.21298]
[1728014601260,0.79781508,2373.9,2373.6,4.21298]
[1728014601596,4.21235,2374.0,2373.6,4.21298]
[1728014603289,4.21235,2374.0,2373.5,4.96397]
[1728014603453,4.21235,2374.0,2373.5,6.01219628]
[1728014604589,4.21235,2374.0,2373.5,6.09645001]
[1728014604751,4.21235,2374.0,2373.6,4.213]
[1728014606601,8.01173,2374.1,2373.6,4.213]
[1728014606765,8.01173,2374.1,2373.6,8.4259]
[1728014606968,8.01173,2374.1,2373.6,9.58731327]
[1728014607189,12.22401,2374.1,2373.6,5.37431327]
[1728014607579,8.01173,2374.1,2373.6,9.58721327]
[1728014607789,12.22401,2374.1,2373.6,5.37431327]
[1728014607985,8.01173,2374.1,2373.7,4.21281]
[1728014608514,8.01173,2374.1,2373.6,5.37431327]
[1728014608515,12.22395,2374.1,2373.6,5.37431327]
[1728014608802,12.22395,2374.1,2373.6,5.45856422]
[1728014608998,8.01172,2374.1,2373.6,9.67149422]
[1728014609198,8.01172,2374.1,2373.7,1.04222942]
[1728014609405,8.01172,2374.1,2373.7,5.25502942]
[1728014609904,12.22395,2374.1,2373.7,1.04222942]
[1728014610069,12.22395,2374.1,2373.6,4.29715088]
[1728014610270,4.21232,2374.0,2373.6,4.29715088]
[1728014611067,4.21232,2374.0,2373.6,4.2129]
[1728014611267,4.21232,2374.0,2373.6,4.29715099]
[1728014611571,4.21232,2374.0,2373.6,4.2129]
[1728014613916,4.21232,2374.0,2373.7,0.49637]
[1728014614214,4.21232,2374.0,2373.6,4.2129]
[1728014615976,3.7995,2374.1,2373.6,4.2129]
[1728014616201,8.01171,2374.1,2373.7,4.21275]
[1728014616376,12.22392,2374.1,2373.7,4.21275]
[1728014617813,12.22392,2374.1,2373.6,4.76298]
[1728014618876,5.021892,2374.1,2373.5,0.7508]
[1728014619219,4.21244,2374.0,2373.5,0.7508]
[1728014619512,4.21257,2373.9,2373.5,0.7508]
[1728014619679,4.21257,2373.9,2373.5,4.9639]
[1728014620076,5.0117,2374.1,2373.6,4.213]
[1728014620276,5.0117,2374.1,2373.6,9.05278528]
[1728014620890,5.0117,2374.1,2373.7,4.21281]
[1728014621410,5.0117,2374.1,2373.6,4.83978528]
[1728014621576,4.21235,2374.0,2373.6,4.21291]
[1728014622592,4.21256,2373.9,2373.5,0.7508]
[1728014622773,0.8093,2373.8,2373.4,4.63582]
[1728014623217,0.8093,2373.8,2373.4,8.84909]
[1728014623379,0.8093,2373.8,2373.4,10.11630774]
[1728014623902,0.8093,2373.8,2373.5,4.21308]
[1728014624103,4.21256,2373.9,2373.5,4.21308]
[1728014624835,4.21256,2373.9,2373.6,0.7683]
[1728014625494,5.02164,2374.0,2373.6,4.98129]
[1728014626305,5.02164,2374.0,2373.6,6.11568405]
[1728014627795,0.8093,2374.0,2373.6,1.90269405]
[1728014627996,3.0,2374.2,2373.7,4.21283]
[1728014627997,8.42437,2374.1,2373.7,4.21283]
[1728014628243,4.21212,2374.1,2373.7,4.21283]
[1728014629745,7.21197,2374.2,2373.8,5.03648]
[1728014630108,7.21183,2374.3,2373.9,4.21246]
[1728014633126,7.21183,2374.3,2373.8,0.8239]
[1728014633127,7.21183,2374.3,2373.8,5.03653]
[1728014633438,7.21183,2374.3,2373.8,5.12077465]
[1728014634040,7.21183,2374.3,2373.8,5.03653]
[1728014635708,4.21196,2374.2,2373.8,5.03653]
[1728014635906,3.0,2374.1,2373.8,5.03653]
[1728014637121,3.0,2374.2,2373.8,5.03653]
[1728014637449,3.0,2374.2,2373.9,4.21232]
[1728014638656,3.8127,2374.1,2373.5,5.9193528]
[1728014638813,4.21232,2374.0,2373.6,4.21298]
[1728014639014,8.02484,2374.1,2373.8,0.8239]
[1728014642748,4.2123,2374.0,2373.6,6.94089182]
[1728014642955,3.8127,2374.1,2373.7,4.21281]
[1728014644365,8.02483,2374.1,2373.7,4.21281]
[1728014644668,8.02483,2374.1,2373.7,5.32818018]
[1728014646663,8.02483,2374.1,2373.7,1.11537018]
[1728014647858,8.02483,2374.1,2373.7,5.32819018]
[1728014649261,0.00607359,2374.4,2373.5,0.8823528]
[1728014649262,0.802,2374.3,2373.5,0.8823528]
[1728014649444,5.01493,2373.7,2373.3,1.6789528]
[1728014649658,9.22789,2373.7,2373.3,1.6789528]
[1728014649816,9.22789,2373.7,2373.2,0.8823528]
[1728014649817,4.21319,2373.5,2373.2,0.8823528]
[1728014650259,4.21344,2373.4,2373.2,0.8823528]
[1728014650558,4.21319,2373.5,2373.2,0.8823528]
[1728014650730,4.21319,2373.5,2373.1,1.6789528]
[1728014650963,8.4265,2373.5,2373.1,1.6789528]
[1728014651169,4.21319,2373.5,2373.1,0.7966]
[1728014651770,4.21319,2373.5,2373.1,1.6789528]
[1728014651982,4.21319,2373.5,2373.1,0.7966]
[1728014652847,4.21338,2373.4,2373.1,0.7966]
[1728014653046,4.21319,2373.5,2373.1,0.7966]
[1728014653581,4.21344,2373.4,2373.1,0.7966]
[1728014658397,4.21319,2373.5,2373.1,0.7966]
[1728014660092,8.4265,2373.5,2373.1,0.7966]
[1728014660967,8.42646,2373.5,2373.1,0.7966]
[1728014662997,5.01496,2373.7,2373.2,0.7966]
[1728014663155,4.21305,2373.6,2373.2,0.7966]
[1728014663555,3.0,2373.8,2373.4,0.7966]
[1728014663759,3.0,2373.9,2373.5,4.21306]
[1728014663961,3.0,2373.9,2373.7,0.7966]
[1728014665301,3.0,2374.0,2373.7,0.7966]
[1728014665461,4.21214,2374.1,2373.7,5.00935]
[1728014667390,4.21214,2374.1,2373.7,0.7966]
[1728014668003,4.21214,2374.1,2373.7,5.00934]
[1728014668184,4.21214,2374.1,2373.8,1.38649825]
[1728014669012,4.21214,2374.1,2373.7,5.00938]
[1728014670606,7.31047359,2374.4,2374.1,4.21203]
[1728014670607,0.00607359,2374.4,2374.1,4.21203]
[1728014670809,0.00607359,2374.4,2374.2,5.00845]
[1728014678405,0.00607359,2374.4,2374.2,0.7966]
[1728014681704,0.00607359,2374.4,2374.2,5.00848]
[1728014681906,0.00607359,2374.4,2374.2,5.985538]
[1728014687955,0.00607359,2374.4,2374.2,5.00846]
[1728014688240,0.00607359,2374.4,2374.2,5.00844]
[1728014690852,0.00607359,2374.4,2374.3,4.21176]
[1728014697446,0.00607359,2374.4,2374.3,4.76176]
[1728014710649,0.00607359,2374.4,2374.3,4.21176]
[1728014711359,0.00607359,2374.4,2374.3,5.22201528]
[1728014712056,0.00607359,2374.4,2374.3,5.77201528]
[1728014714669,0.00607359,2374.4,2374.3,1.56025528]
[1728014714867,0.00607359,2374.4,2374.2,4.21184]
[1728014715095,0.00607359,2374.4,2374.2,8.4237]
[1728014716291,0.00607359,2374.4,2374.2,9.3060528]
[1728014716492,0.00607359,2374.4,2374.3,4.21176]
[1728014717857,0.00607359,2374.4,2374.3,5.59016]
[1728014718052,0.00607359,2374.4,2374.3,6.87517581]
[1728014719202,0.00607359,2374.4,2374.3,7.29944408]
[1728014719502,0.00607359,2374.4,2374.3,8.09756927]
[1728014719680,0.00607359,2374.4,2374.3,7.21521647]
[1728014719883,0.00607359,2374.4,2374.3,8.09756927]
[1728014720092,0.00607359,2374.4,2374.3,7.21521647]
[1728014721295,0.00607359,2374.4,2374.3,0.97426827]